Cogmind - Beta 14 *** ADVENTURER MODE // 2024.09.24 @ 16:27:43 // Winter2019/RPGLIKE Player: DeepestRoots Result: Core destroyed Performance ------------- Evolutions (1) 500 Regions Visited (5) 1000 Robots Destroyed (95) 475 Value Destroyed (2131) 2131 Prototype IDs (13) 260 Alien Tech Used (0) 0 Bonus (344) 344 TOTAL SCORE: 4710 Bonus ------- High Alert Combat Kills 10 Follower Combat Kills 347 Friendly Fire -13 Cogmind --------- Core Integrity 0/600 Matter 204/300 Energy 171/280 System Corruption 0% Temperature Critical (554) Movement Rolling (90) Location -9/Exiles Parts ------- > --- POWER (1) -------- Heavy Ion Engine > --- PROPULSION (2) --- Wheel Compact Wheel > --- UTILITY (4) ------ Seismic Detector Shield Generator Hacking Suite > --- WEAPON (3) ------- Improved Medium Laser Particle Cannon Autogun > --- INVENTORY (3) ---- Rocket Launcher Peak State ------------ > --- POWER ------------ Heavy Ion Engine > --- PROPULSION ------- Wheel Wheel > --- UTILITY ---------- Disposable Heat Sink Seismic Detector Shield Generator Hacking Suite > --- WEAPON ----------- Improved Medium Laser Autogun Makeshift Axe > --- INVENTORY -------- Grenade Launcher Rocket Launcher [Rating: 22] Favorites ----------- Power Heavy Ion Engine Engine Heavy Ion Engine Propulsion Wheel Wheel Wheel Utility Seismic Detector Device Seismic Detector Hackware Hacking Suite Weapon Autogun Energy Gun Improved Medium Laser Energy Cannon Particle Cannon Ballistic Gun Autogun Launcher Rocket Launcher Slashing Weapon Makeshift Axe Build | -11 -10 -10 -9 -9 -9 ------- Run | Yrd Mat Min Mat Min Exi Slots Evolved 6 | 3 . . 3 . . Power . | . . . . . . Propulsion 1 | 1 . . . . . Utility 3 | 1 . . 2 . . Weapon 2 | 1 . . 1 . . Parts Attached 39 | 9 6 3 14 5 2 Power 4 | 1 1 . 2 . . Engine 4 | 1 1 . 2 . . Core . | . . . . . . Reactor . | . . . . . . Propulsion 12 | 4 3 2 2 1 . Treads . | . . . . . . Leg . | . . . . . . Wheel 12 | 4 3 2 2 1 . Hover . | . . . . . . Flight . | . . . . . . Utility 8 | 2 1 . 5 . . Device 6 | 2 1 . 3 . . Storage . | . . . . . . Processor . | . . . . . . Hackware 2 | . . . 2 . . Protection . | . . . . . . Artifact . | . . . . . . Weapon 15 | 2 1 1 5 4 2 Energy Gun 5 | 1 . . 3 1 . Energy Cannon 3 | . . . . 2 1 Ballistic Gun 4 | 1 1 . 2 . . Ballistic Cannon . | . . . . . . Launcher 2 | . . . . 1 1 Special Weapon . | . . . . . . Impact Weapon . | . . . . . . Slashing Weapon 1 | . . 1 . . . Piercing Weapon . | . . . . . . Special Melee Weapon . | . . . . . . Unidentified Prototypes . | . . . . . . Parts Lost . | . . . . . . Power . | . . . . . . Propulsion . | . . . . . . Utility . | . . . . . . Weapon . | . . . . . . Highest Loss Streak . | . . . . . . To Critical Strikes . | . . . . . . Average Slot Usage (%) 99 | . 99 100 99 100 99 Engine 11 | . 14 14 10 10 10 Wheel 23 | . 28 28 21 20 20 Device 28 | . 27 28 26 30 29 Hackware 5 | . . . 10 10 10 Energy Gun 11 | . 14 13 9 13 10 Energy Cannon 1 | . . . . 4 9 Ballistic Gun 11 | . 14 14 10 10 10 Slashing Weapon 3 | . . . 10 . . Peak Build Rating 22 | 7 9 12 22 22 21 Average Rating 14 | 4 7 9 19 20 20 On Entrance 11 | . 7 9 12 22 20 Naked Turns . | . . . . . . Heaviest Build 22 | 7 10 12 21 22 22 Greatest Support 32 | 32 26 20 20 26 26 Greatest Overweight (x) 1 | 1 . . 1 1 . Average Overweight (x) . | . . . . . . Largest Inventory Capacity 3 | 1 1 2 2 2 3 Average Capacity 1 | 1 1 1 2 2 2 Most Carried 3 | 1 1 2 2 2 3 Average Carried 1 | . . 1 1 1 1 Final Capacity 3 | 1 1 2 2 2 3 Final Carried 2 | 1 1 2 2 2 1 Class Distribution -------------------- 53% | Hacker-Mutant 24% | Hacker-Gunner 22% | Scavenger-Mutant Dominant Class ---------------- Hacker-Mutant | -10/Materials Scavenger-Mutant | -10/Mines Hacker-Mutant | -9/Materials Hacker-Gunner | -9/Mines Hacker-Gunner | -9/Exiles Resources | -11 -10 -10 -9 -9 -9 ----------- Run | Yrd Mat Min Mat Min Exi Matter Collected 1210 | 295 210 84 373 184 64 Remotely 281 | 81 200 . . . . Salvage Created 2839 | 117 1004 166 1159 388 5 Parts 189 | 6 60 13 72 38 . Haulers Intercepted 3 | . 1 . 2 . . Recyclers Shooed 1 | . . . 1 . . Parts Field Recycled . | . . . . . . Retrieved Matter . | . . . . . . Parts Self-Destructed . | . . . . . . Prevented . | . . . . . . Kills | -11 -10 -10 -9 -9 -9 ------- Run | Yrd Mat Min Mat Min Exi Combat Hostiles Destroyed 78 | . 24 7 24 18 5 Melee 2 | . . . 2 . . Guns 68 | . 24 7 22 15 . AOE 8 | . . . . 3 5 Classes Destroyed 13 | 2 6 1 3 . 1 Worker 4 | . 1 2 1 . . Tunneler 3 | 1 . . 1 1 . Hauler 3 | . 1 . 2 . . Recycler 5 | 1 . 1 1 2 . Operator 1 | . . . 1 . . Watcher 6 | . 3 . 3 . . Swarmer 30 | . 9 3 5 13 . Grunt 34 | . 14 2 13 5 . Brawler 1 | . . . 1 . . Sentry 5 | . . . 5 . . Demolisher 2 | . . 2 . . . Subdweller 1 | . 1 . . . . Assembled 5 | . . . . . 5 Best Kill Streak 6 | 2 6 3 4 5 5 Combat Bots Only 5 | . 5 3 3 4 5 Max Kills in Single Turn 2 | 1 1 1 2 2 2 Gunslinging 1 | . . . 1 . . Exploded 2 | . . . . 2 2 Melee 1 | . . . 1 . . Uniques/NPCs Destroyed . | . . . . . . Combat | -11 -10 -10 -9 -9 -9 -------- Run | Yrd Mat Min Mat Min Exi Hostile Shots Fired 299 | . 92 18 69 54 66 Missed 65 | . 22 2 26 11 4 Damage Taken 2409 | . 580 399 470 223 737 Core 1952 | . 469 330 370 170 613 Absorbed by Shields 306 | . . . 71 94 141 Redirected to Core 1366 | . 334 227 305 131 369 Ignored by Resistances 779 | . 187 111 153 101 227 Regen/Repaired (Parts) 68 | . . . 68 . . Core Remaining (%) 82 | 100 . 64 . . . Volleys Fired 232 | 5 86 18 63 30 30 Largest 3 | 2 2 2 2 3 3 Hottest 147 | 60 60 60 79 147 147 Shots Fired 490 | 10 172 36 121 77 74 Gun 453 | 10 172 36 121 66 48 Cannon 31 | . . . . 9 22 Launcher 6 | . . . . 2 4 Special . | . . . . . . Kinetic 224 | 5 86 18 63 28 24 Thermal 260 | 5 86 18 58 47 46 Explosive 6 | . . . . 2 4 Electromagnetic . | . . . . . . Robot Hit Streak 35 | 5 27 35 23 20 27 Robot Miss Streak 2 | 1 2 2 2 2 2 Penetration Max . | . . . . . . Secondary Targets 7 | . 1 . 3 3 . Max Gunslinging Chain 1 | . 1 . 1 1 . Shots Hit Robots 403 | 8 142 30 112 49 62 Core Hits 157 | 5 54 16 42 25 15 Critical Kills 1 | . . . 1 . . Critical Parts Destroyed 2 | . 2 . . . . Critical Strikes 14 | . 2 . 6 3 3 Burn 10 | . . . 4 3 3 Destroy 3 | . 2 . 1 . . Sever 1 | . . . 1 . . Melee Attacks 12 | . . 1 11 . . Impact . | . . . . . . Slashing 12 | . . 1 11 . . Piercing . | . . . . . . Sneak Attacks 2 | . . 1 1 . . Combat Hostiles . | . . . . . . Follow-up Attacks . | . . . . . . Damage Inflicted 6024 | 67 1494 437 2128 1182 716 Guns 4704 | 67 1494 348 1679 737 379 Cannons 140 | . . . . 108 32 Explosions 642 | . . . . 337 305 Melee 538 | . . 89 449 . . Ramming . | . . . . . . Kinetic 2569 | 35 743 184 896 354 357 Thermal 2410 | 32 751 164 783 626 54 Explosive 507 | . . . . 202 305 Electromagnetic . | . . . . . . Impact . | . . . . . . Slashing 538 | . . 89 449 . . Piercing . | . . . . . . Highest Corruption . | . . . . . . Average Corruption . | . . . . . . Corruption Purged . | . . . . . . Corruption Blocked . | . . . . . . Overload Shots . | . . . . . . Overflow Damage 137 | . . 79 26 17 15 Projectiles . | . . . . . . Explosions 32 | . . . . 17 15 Melee 105 | . . 79 26 . . Knockbacks . | . . . . . . Impact . | . . . . . . Kinetic . | . . . . . . Secondary . | . . . . . . Self-Inflicted Damage . | . . . . . . Shots . | . . . . . . Rammed . | . . . . . . Targets Rammed . | . . . . . . Kicked . | . . . . . . Crushed . | . . . . . . Highest Temperature 554 | 20 116 35 122 198 554 Average Temperature 71 | 15 35 13 34 98 197 Received Heat Transfer 571 | . 294 57 148 72 . Effects 4 | . . . . . 4 Shutdowns 1 | . . . . . 1 Energy Bleed 1 | . . . . . 1 Damage (minor) 1 | . . . . . 1 Damage (core) 1 | . . . . . 1 Siege Activations . | . . . . . . Robots Corrupted . | . . . . . . Combat Hostiles . | . . . . . . Parts Fried . | . . . . . . Impact Corruptions . | . . . . . . Robots Melted . | . . . . . . Combat Hostiles . | . . . . . . Parts Melted 8 | . 2 . 3 3 . Heat Transferred 5877 | 75 1650 350 2035 1371 396 Parts Sabotaged . | . . . . . . Parts Stolen . | . . . . . . Parts Stripped . | . . . . . . Power Chain Reactions . | . . . . . . Alert | -11 -10 -10 -9 -9 -9 ------- Run | Yrd Mat Min Mat Min Exi Peak Influence 514 | 10 263 167 365 514 . Initial 57 | . 5 17 3 57 . Average 154 | 4 119 67 185 282 . Maximum Alert Level 2 | . 1 . 1 2 . Low Security (%) 69 | 100 82 100 62 16 . Level 1 29 | . 17 . 37 74 . Level 2 1 | . . . . 8 . Level 3 . | . . . . . . Level 4 . | . . . . . . Level 5 . | . . . . . . High Security . | . . . . . . Max Security . | . . . . . . Squads Dispatched 9 | . 6 . 3 . . Investigation 8 | . 6 . 2 . . Extermination . | . . . . . . Reinforcement 1 | . . . 1 . . Assault . | . . . . . . Garrison . | . . . . . . Intercept . | . . . . . . Searches Triggered . | . . . . . . Construction Impeded . | . . . . . . Haulers Reinforced . | . . . . . . Active Scanning Responses . | . . . . . . Cargo Convoy Interrupts . | . . . . . . Stealth | -11 -10 -10 -9 -9 -9 --------- Run | Yrd Mat Min Mat Min Exi Distress Signals 6 | . 1 1 4 . . Communications Jammed . | . . . . . . Distress Signals . | . . . . . . Times Spotted 113 | . 31 8 48 18 8 Peak Tracking Total 9 | . 5 3 5 4 9 Tactical Retreats 7 | . 1 . 4 2 . Traps | -11 -10 -10 -9 -9 -9 ------- Run | Yrd Mat Min Mat Min Exi Traps Triggered 3 | . 2 . 1 . . Indirectly . | . . . . . . Trap Hack Attempts . | . . . . . . Triggered . | . . . . . . Disarmed . | . . . . . . Reprogrammed 14 | . . . 14 . . Reused 1 | . . 1 . . . Traps Extracted . | . . . . . . Installed 3 | . . 3 . . . Triggered 1 | . . 1 . . . Most Traps Carried 1 | . . 1 . . . Machines | -11 -10 -10 -9 -9 -9 ---------- Run | Yrd Mat Min Mat Min Exi Machines Disabled 7 | . . . 1 2 4 Max in Single Turn 1 | . . . . 1 1 Machines Repaired . | . . . . . . Machines Dismantled . | . . . . . . Machines Sabotaged . | . . . . . . Overloaded Fab Kills . | . . . . . . Hacking | -11 -10 -10 -9 -9 -9 --------- Run | Yrd Mat Min Mat Min Exi Machines Accessed 26 | . 10 . 14 1 1 Terminals 19 | . 8 . 10 1 . Fabricators . | . . . . . . Repair Stations 1 | . . . 1 . . Recycling Units 4 | . 2 . 2 . . Scanalyzers 1 | . . . 1 . . Garrison Access . | . . . . . . Total Hacks 92 | . 33 . 55 3 1 Successful 70 | . 23 . 44 2 1 Failed 22 | . 10 . 11 1 . Catastrophic 1 | . . . 1 . . Database Lockouts . | . . . . . . Manual 54 | . 26 . 25 3 . Terminals 83 | . 31 . 49 3 . Fabricators . | . . . . . . Repair Stations 2 | . . . 2 . . Recycling Units 4 | . 2 . 2 . . Scanalyzers 2 | . . . 2 . . Garrison Access . | . . . . . . Terminal Hacks 36 | . 12 . 21 2 1 Record 1 | . . . . . 1 Robot Analysis 4 | . 3 . 1 . . Prototype ID Bank 11 | . 5 . 4 2 . Branch Access Points 2 | . 1 . 1 . . Emergency Access Points 1 | . . . 1 . . Machine Index 1 | . . . 1 . . Alert Level 1 | . . . 1 . . Unreport Threat 3 | . 1 . 2 . . Locate Traps 4 | . 1 . 3 . . Reprogram Traps 3 | . . . 3 . . Patrol Status 1 | . . . 1 . . Hauler Manifests 2 | . 1 . 1 . . Zone Layout 2 | . . . 2 . . Fabricator Hacks . | . . . . . . Repair Station Hacks 2 | . . . 2 . . Scan Component 1 | . . . 1 . . Repair 1 | . . . 1 . . Recycling Unit Hacks . | . . . . . . Scanalyzer 2 | . . . 2 . . Insert Component 2 | . . . 2 . . Garrison Access Hacks . | . . . . . . Unauthorized Hacks 30 | . 11 . 19 . . Terminals 26 | . 9 . 17 . . Track 1 | . . . 1 . . Botnet 8 | . 3 . 5 . . Disrupt 1 | . . . 1 . . Operators 2 | . . . 2 . . Skim 14 | . 6 . 8 . . Fabricators . | . . . . . . Repair Stations . | . . . . . . Recycling Units 4 | . 2 . 2 . . Tunnel 4 | . 2 . 2 . . Scanalyzers . | . . . . . . Garrison Access . | . . . . . . Data Cores Recovered . | . . . . . . Used . | . . . . . . Hacking Detections 14 | . 7 . 6 1 . Full Trace Events 1 | . 1 . . . . Feedback Events . | . . . . . . Feedback Blocked . | . . . . . . Robot Schematics Acquired . | . . . . . . Robots Built . | . . . . . . Authchips . | . . . . . . Time . | . . . . . . Total Robot Build Rating . | . . . . . . Part Schematics Acquired . | . . . . . . Parts Built . | . . . . . . Authchips . | . . . . . . Time . | . . . . . . Total Part Build Rating . | . . . . . . Parts Repaired 1 | . . . 1 . . Time 32 | . . . 32 . . Parts Recycled . | . . . . . . Recycled Matter . | . . . . . . Retrieved Matter . | . . . . . . Retrieved Components . | . . . . . . Parts Scanalyzed . | . . . . . . Part Schematics Acquired . | . . . . . . Parts Damaged . | . . . . . . Bothacking | -11 -10 -10 -9 -9 -9 ------------ Run | Yrd Mat Min Mat Min Exi Used RIF Installer . | . . . . . . Robots Hacked . | . . . . . . Non-combat . | . . . . . . Combat . | . . . . . . Robot Hacks Applied . | . . . . . . Relay Couplers Released . | . . . . . . Fabnet Peak Effective % . | . . . . . . Robots Rewired . | . . . . . . Allies Hacked . | . . . . . . Hacks Repelled . | . . . . . . Allies | -11 -10 -10 -9 -9 -9 -------- Run | Yrd Mat Min Mat Min Exi Total Allies 3 | . . 3 . . . Largest Group 3 | . . 3 3 1 . Highest-Rated Group 40 | . . 40 40 13 . Highest-Rated Ally 16 | . . 16 16 13 . Total Orders 10 | . . . 10 . . STAY 5 | . . . 5 . . FOLLOW 5 | . . . 5 . . Ally Attacks 69 | . . 7 60 2 . Total Damage 776 | . . 80 666 30 . Kills 18 | . . 1 17 . . Allies Corrupted . | . . . . . . Allies Melted . | . . . . . . Intel | -11 -10 -10 -9 -9 -9 ------- Run | Yrd Mat Min Mat Min Exi Robot Analysis Total 4 | . 3 . 1 . . Derelict Logs Recovered 3 | . . 1 . 2 . Drone Launches . | . . . . . . Drone Recoveries . | . . . . . . Exploration | -11 -10 -10 -9 -9 -9 ------------- Run | Yrd Mat Min Mat Min Exi Turns Passed 5871 | 64 1449 1016 1842 715 785 Spaces Moved 4859 | 39 1198 789 1572 580 681 Core 7 | 7 . . . . . Treads . | . . . . . . Legs . | . . . . . . Wheels 4852 | 32 1198 789 1572 580 681 Hover . | . . . . . . Flight . | . . . . . . Fastest Speed 50 | 50 80 80 80 80 90 Average Speed 87 | 91 87 80 88 94 90 Slowest Speed 100 | 100 90 80 95 95 90 Overloaded Moves . | . . . . . . Propulsion Burnouts . | . . . . . . Robots Hopped . | . . . . . . Cave-ins Triggered . | . . . . . . Exploration Rate (%) 75 | 4 98 97 98 98 57 Regions Visited 5 Branch Regions 3 Pre-discovered Areas 8 | . 3 . 3 1 1 Known Exits Taken 2 | . 1 . 1 . . Unknown Exits Taken 3 | 1 . 1 . 1 . Scrap Searched 3 | . . 1 . 2 . Spaces Dug . | . . . . . . Terrain Destroyed 44 | . . . . 34 10 Melee . | . . . . . . Projectile . | . . . . . . AOE 44 | . . . . 34 10 Terrain Rammed . | . . . . . . Walls Destroyed . | . . . . . . Machines Disabled . | . . . . . . Actions | -11 -10 -10 -9 -9 -9 --------- Run | Yrd Mat Min Mat Min Exi Total 6022 | 56 1440 1138 1894 690 804 Wait 720 | . 125 300 178 53 64 Move 4854 | 38 1197 788 1571 579 681 Hop . | . . . . . . Pick Up 24 | 2 1 4 4 2 11 Fast Attach 20 | 6 2 . 10 2 . Attach 1 | 1 . . . . . Detach . | . . . . . . Swap 18 | 2 4 3 4 3 2 Drop 39 | 2 7 5 9 4 12 Fire 232 | 5 86 18 63 30 30 Melee 12 | . . 1 11 . . Ram . | . . . . . . Kick . | . . . . . . Crush . | . . . . . . Escape Stasis . | . . . . . . Rewire . | . . . . . . Trap 3 | . . 3 . . . Miscellaneous 99 | . 18 16 44 17 4 Route ------- -11/Scrapyard -10/Materials (discovered 5 exits: *Mat x3 / *Min x2) -10/Mines (discovered 2 exits: *Mat x2) -9/Materials (discovered 4 exits: *Mat x3 / *Min) -9/Mines (discovered 3 exits: *Mat x2 / *Exi) -9/Exiles (discovered 1 exit: [*Min]) History --------- Turn | Location | Event 1 | -11/Scrapyard | Upgraded with Propulsion slot (x1) 1 | -11/Scrapyard | Upgraded with Utility slot (x1) 1 | -11/Scrapyard | Upgraded with Weapon slot (x1) 6 | -11/Scrapyard | Discovered new exit (range 15) 65 | -11/Scrapyard | Entered Materials 202 | -10/Materials | Discovered new exit (range 16) 308 | -10/Materials | Build established: Hacker-Mutant 463 | -10/Materials | Identified exit to Mines 519 | -10/Materials | Discovered new exit (range 15) 755 | -10/Materials | Reached level 2 863 | -10/Materials | Learned 4 Subcaves zone layouts 920 | -10/Materials | Discovered new exit (range 7) 927 | -10/Materials | Learned 2 Storage zone layouts 946 | -10/Materials | Learned 4 Subcaves zone layouts 954 | -10/Materials | Learned Storage security intel 955 | -10/Materials | Learned location of Mines (-8) 965 | -10/Materials | Derelicts attacked the area 965 | -10/Materials | Learned Storage trap positions 1130 | -10/Materials | Reached level 3 1514 | -10/Materials | Entered Mines 1537 | -10/Mines | A weapon hastily lodged in a ceiling crevice suddenly fell to the ground 1565 | -10/Mines | Build established: Scavenger-Mutant 1649 | -10/Mines | Found a hidden stash of uninstalled traps 1671 | -10/Mines | Assembled infested the area 2013 | -10/Mines | Reached level 4 2200 | -10/Mines | Assisted by bots powering up and referring to "LRC-V3" 2231 | -10/Mines | Learned location of 1 exit from Materials 2255 | -10/Mines | Discovered new exit (range 7) 2277 | -10/Mines | Discovered new exit (range 11) 2530 | -10/Mines | Entered Materials 2530 | -9/Materials | Accompanied by 3 allies 2531 | -9/Materials | Identified exit to Materials 2532 | -9/Materials | Reached level 5 2542 | -9/Materials | Upgraded with Utility slot (x1) 2647 | -9/Materials | Upgraded with Weapon slot (x1) 2699 | -9/Materials | Repaired Beam Rifle 2755 | -9/Materials | Core integrity fell below 50% 2769 | -9/Materials | Reached level 6 2855 | -9/Materials | Build established: Hacker-Mutant 3037 | -9/Materials | Identified exit to Mines 3086 | -9/Materials | Discovered exit to Materials (range 16) 3225 | -9/Materials | Reached level 7 3319 | -9/Materials | Learned location of 2 exits from Materials 3363 | -9/Materials | Upgraded with Utility slot (x1) 3515 | -9/Materials | Learned location of Zion (-6) 3557 | -9/Materials | Learned location of 1 exit from Recycling 3637 | -9/Materials | Reached level 8 4372 | -9/Materials | Entered Mines 4372 | -9/Mines | Accompanied by 2 allies 4384 | -9/Mines | Reached level 9 4461 | -9/Mines | Learned Materials trap positions 4568 | -9/Mines | Found a damaged Exp. Sensor Array with a note attached 4731 | -9/Mines | Build established: Hacker-Gunner 4880 | -9/Mines | Received a Rocket Launcher from a helpful Derelict 5084 | -9/Mines | Deemed a non-threat by the Exiles lab entrance 5084 | -9/Mines | Discovered new exit (range 5) 5087 | -9/Mines | Entered Exiles 5109 | -9/Exiles | Met 8R-AWN 5133 | -9/Exiles | Discovered new exit (range 14) 5158 | -9/Exiles | Met EX-HEX 5192 | -9/Exiles | Met EX-DEC 5708 | -9/Exiles | Attacked by the Exiles 5861 | -9/Exiles | Core integrity fell below 20% 5873 | -9/Exiles | Core destroyed Last Messages --------------- 05827_ Penetrated by HV Slug. 05833_ 8R-AWN suffers critical hit (Burn). 05834_ Penetrated by HV Slug. 05840_ 8R-AWN suffers critical hit (Burn). 05841_ Penetrated by HV Slug. 05845_ HV Slug penetrates Wall. 05845_ Penetrated by HV Slug. 05847_ HV Slug penetrates Wall. 05850_ Penetrated by HV Slug. 05851_ Machine disabled. 05852_ Penetrated by HV Slug. 05857_ Disposable Heat Sink melts away. 05860_ Penetrated by HV Slug. 05860_ Machine disabled. 05865_ Penetrated by HV Slug. 05866_ Power failure, Hvy. Ion Engine shutdown. 05869_ Overheating: Energy bleed (-22). 05869_ Penetrated by HV Slug. 05872_ Overheating: Wheel damaged (-22). 05873_ Overheating: Core damaged (-72). Map ----- +----------------------------------------------------+ | ?????????????????????????????????????????????????? | | ?????????????????????????????????????????????????? | | ?????????????????????????????????????????????????? | | ?????????????????????????????????????????????????? | | ?????????????????????????????????????????????????? | | ?????????????????????????????????????????????????? | | ?????????????????????????????????????????????????? | | ?????????????????????????????????????????????????? | | ?????????????????????????????????????????????????? | | ????????????? ???????????????????????????????????? | | ???????????? ??????????????#######?????????????? | | ???????????? ######???????# "#?????????????? | | ??????????? #""#??????# "#?????????????? | | ???????????? ??????# "#?????????????? | | ????????????#" #????## ""#????????????## | | ????????????"" #####" ""#???????????? | | ??????????????# ## ""#????????????" | | ???????????????# #" ###????????????" | | ??????????????????# #?????????????"" | | ????????????????????## ##????????????"" | | ?????????????????????### ! "######??????? | | ???????????????######## ! #????????" | | ???????????????# !!"""" ###????????# | | ???????????????#! g ###"" % ####???### | | ???????????????#! ! #?##" "#####X# | | ???????????????#! @##??#" | | ???????????????# """"""#;#???#"# | | ???????????????########## #???#### | | ????????????????????????# #??????### | | ????????????????????????# #????????### | | ????????????????????????# #??????????# | | ????????????????????????# #???????????# | | ????????????????????????# #????????????##" | | ????????????????????????# #?????????????#""" | | ????????????????????????? ?????????????##" | | ????????????????????????? ?????????????#"" | | ????????????????????????? ?????????????#""" | | ????????????????????????? ????????????#""" | | ????????????????????????? ????????????#""" | | ????????????????????????? ????????????#"" | | ????????????????????????? ????????????#""" | | ??????????????????????????????????????#"" | | ???????????????????????????????????????#"" | | ???????????????????????????????????????#"""" | | ????????????????????????????????????????# | | ????????????????????????????????????????#" | | ????????????????????????????????????????#"""" | | ????????????????????????????????????????#"" | | ?????????????????????????????????????????" | | ?????????????????????????????????????????""" | +----------------------------------------------------+ Best States ------------- Heat Dissipation 35 Coolant Potential 50 Energy Generation 14 Energy Capacity 280 Matter Stores 300 Matter Capacity 300 Sight Range 16 Terrain Scan Range 16 Terrain Scan Density 10 Resistance: KI 20 Resistance: TH 20 Resistance: EX 20 Resistance: EM 20 Resistance: I 20 Resistance: S 20 Resistance: P 20 Evasion (%) 44 Offensive Hacking 25 Defensive Hacking 15 Item Schematics ----------------- None Robot Schematics ------------------ None Fabricated ------------ Nothing Alien Tech Used ----------------- None Achievements -------------- None Challenges ------------ None RPGLIKE | -11 -10 -10 -9 -9 -9 --------- Run | Yrd Mat Min Mat Min Exi Levels Raised 8 | . 2 1 4 1 . XP Earned 17074 | 4000 3240 1577 6753 1407 97 XP Spent 6100 | 2150 . 500 2700 . 750 Upgrades 11 | 6 . 1 3 . 1 Propulsion Slot 1 | 1 . . . . . Utility Slot 3 | 1 . . 2 . . Weapon Slot 2 | 1 . . 1 . . Inventory Capacity 3 | 1 . 1 . . 1 Hack Attack % 1 | 1 . . . . . Hack Defense % 1 | 1 . . . . . Protomatter Created 604 | . 115 104 248 136 1 Integrity Restored 1732 | . 329 336 766 228 73 Core 1339 | . 297 287 585 149 21 Parts 393 | . 32 49 181 79 52 Protomatter Decayed 263 | . 3 57 100 81 22 Game ------ Seed TachyonAccelerationExtractor Manual? 0 Play Time 00:58:27 Cumulative 734.3 hours Start 2024.09.24 @ 15:31:29 End 2024.09.24 @ 16:27:43 Sessions 1 Manual Loads 0 Difficulty Adventurer Special Mode Winter2019/RPGLIKE Game No. 58 Rogue 9 Adventurer 35 Explorer 14 Win Type - Total 39 Types 20/2/10/1/1/2/0/2/1 Lore% 80 Gallery% 91 Achievement% 80 Wizard Run 0 Options --------- Layout 0 ASCII 0 Keyboard 0 Movement Mouse Keybinds 0 Fullscreen 2 Font 36/Terminus++ Map View 76x50 Zoom Use 0% Tactical HUD 1 Map Filters NONE Filters NONE Steam 0 RUN: 50f40ad5-3f5f-400f-ac89-2414fff2c379